[Event "*** Titled Tuesday Blitz"]
[Site "Chess.com"]
[Date "2021.03.16"]
[Round "11"]
[White "bazar-wokzal"]
[Black "Gloomy_Wanderer"]
[Result "0-1"]
[WhiteElo "2516"]
[BlackElo "2691"]
[TimeControl "180+1"]
[EndTime "12:02:13 PDT"]
[Termination "Gloomy_Wanderer won by checkmate"]

1. e4 {[%clk 0:03:00.9]} 1... c5 {[%clk 0:03:00.4]} 2. c3 {[%clk 0:03:00.9]}
2... a6 {[%clk 0:03:00.7]} 3. d4 {[%clk 0:03:00.6]} 3... cxd4 {[%clk 0:03:01.6]}
4. cxd4 {[%clk 0:03:00.8]} 4... d5 {[%clk 0:03:02.3]} 5. e5 {[%clk 0:02:57.3]}
5... Nc6 {[%clk 0:03:02.3]} 6. Nc3 {[%clk 0:02:56.3]} 6... Bf5 {[%clk
0:03:01.7]} 7. g4 {[%clk 0:02:55.4]} 7... Bg6 {[%clk 0:03:02.1]} 8. e6 {[%clk
0:02:48.8]} 8... fxe6 {[%clk 0:03:02.1]} 9. f4 {[%clk 0:02:48.8]} 9... Nf6
{[%clk 0:02:47]} 10. Be3 {[%clk 0:02:45]} 10... e5 {[%clk 0:02:25.5]} 11. dxe5
{[%clk 0:02:35.4]} 11... d4 {[%clk 0:02:25.9]} 12. exf6 {[%clk 0:02:24.4]} 12...
dxe3 {[%clk 0:02:25.8]} 13. f5 {[%clk 0:02:20.4]} 13... Bf7 {[%clk 0:02:20.8]}
14. fxg7 {[%clk 0:02:12.7]} 14... Bxg7 {[%clk 0:02:20.7]} 15. Bg2 {[%clk
0:02:08.2]} 15... Qb6 {[%clk 0:02:09.2]} 16. Nd5 {[%clk 0:01:49.4]} 16... Qa5+
{[%clk 0:02:01.9]} 17. Nc3 {[%clk 0:01:30.6]} 17... Rd8 {[%clk 0:02:00.4]} 18.
Bxc6+ {[%clk 0:01:26.6]} 18... bxc6 {[%clk 0:02:01.3]} 19. Qc2 {[%clk
0:01:15.8]} 19... Rd2 {[%clk 0:01:54.3]} 20. Qe4 {[%clk 0:01:15.8]} 20... Bd5
{[%clk 0:01:27.8]} 21. Nxd5 {[%clk 0:01:10.5]} 21... Rxb2+ {[%clk 0:01:23.6]}
22. Kf1 {[%clk 0:01:03]} 22... Rf2# {[%clk 0:01:22.7]} 0-1

[Event "*** Titled Tuesday Blitz"]
[Site "Chess.com"]
[Date "2021.03.16"]
[Round "11"]
[White "organdzievhren"]
[Black "Sergey85Rodchenkov"]
[Result "1/2-1/2"]
[WhiteElo "2430"]
[BlackElo "2524"]
[TimeControl "180+1"]
[EndTime "12:02:23 PDT"]
[Termination "Game drawn by repetition"]

1. e4 {[%clk 0:02:57.8]} 1... c5 {[%clk 0:02:59.6]} 2. Nf3 {[%clk 0:02:58]} 2...
d6 {[%clk 0:02:59.8]} 3. Bb5+ {[%clk 0:02:58.1]} 3... Nd7 {[%clk 0:02:59.1]} 4.
c4 {[%clk 0:02:57.9]} 4... Nf6 {[%clk 0:02:58.7]} 5. O-O {[%clk 0:02:58.5]} 5...
g6 {[%clk 0:02:58.3]} 6. d3 {[%clk 0:02:57.7]} 6... Bg7 {[%clk 0:02:58.5]} 7.
Bg5 {[%clk 0:02:58.3]} 7... O-O {[%clk 0:02:58.2]} 8. Qd2 {[%clk 0:02:58.7]}
8... Ne5 {[%clk 0:02:56.2]} 9. Ne1 {[%clk 0:02:57.7]} 9... a6 {[%clk 0:02:51.5]}
10. Ba4 {[%clk 0:02:55.9]} 10... b5 {[%clk 0:02:51.7]} 11. cxb5 {[%clk
0:02:56.1]} 11... axb5 {[%clk 0:02:52.1]} 12. Bxb5 {[%clk 0:02:56.6]} 12... Qb6
{[%clk 0:02:49.4]} 13. Nc3 {[%clk 0:02:54.6]} 13... e6 {[%clk 0:02:46]} 14. Bh6
{[%clk 0:02:44.3]} 14... Bxh6 {[%clk 0:02:39.8]} 15. Qxh6 {[%clk 0:02:43.4]}
15... Bb7 {[%clk 0:02:34.2]} 16. Qd2 {[%clk 0:02:31.4]} 16... Rfb8 {[%clk
0:02:32.5]} 17. Nc2 {[%clk 0:02:24.5]} 17... Ba6 {[%clk 0:02:27.3]} 18. a4
{[%clk 0:02:20.8]} 18... Nc6 {[%clk 0:02:25.5]} 19. h3 {[%clk 0:02:07.6]} 19...
Nd4 {[%clk 0:02:24.9]} 20. Nxd4 {[%clk 0:01:57]} 20... cxd4 {[%clk 0:02:24.4]}
21. Ne2 {[%clk 0:01:56]} 21... Bxb5 {[%clk 0:02:20.3]} 22. axb5 {[%clk
0:01:54.6]} 22... Rxa1 {[%clk 0:02:02.5]} 23. Rxa1 {[%clk 0:01:55.5]} 23... Qxb5
{[%clk 0:02:02.5]} 24. Nxd4 {[%clk 0:01:47.6]} 24... Qxb2 {[%clk 0:02:01.6]} 25.
Qxb2 {[%clk 0:01:46.4]} 25... Rxb2 {[%clk 0:02:02.2]} 26. Ra8+ {[%clk
0:01:42.6]} 26... Kg7 {[%clk 0:02:01.8]} 27. Rd8 {[%clk 0:01:41.6]} 27... d5
{[%clk 0:01:34.3]} 28. e5 {[%clk 0:01:35.1]} 28... Nh5 {[%clk 0:01:32.3]} 29. g3
{[%clk 0:01:22.5]} 29... Rd2 {[%clk 0:01:30.7]} 30. Rd7 {[%clk 0:01:19.6]} 30...
Kf8 {[%clk 0:01:30.1]} 31. Rd8+ {[%clk 0:01:15]} 31... Kg7 {[%clk 0:01:30.2]}
32. Rd7 {[%clk 0:01:13.8]} 32... Kf8 {[%clk 0:01:30.1]} 33. Rd8+ {[%clk
0:01:13]} 33... Kg7 {[%clk 0:01:30.4]} 1/2-1/2

[Event "*** Titled Tuesday Blitz"]
[Site "Chess.com"]
[Date "2021.03.16"]
[Round "11"]
[White "Vincent_Vega95"]
[Black "PavelChernomordik"]
[Result "1-0"]
[WhiteElo "2714"]
[BlackElo "2406"]
[TimeControl "180+1"]
[EndTime "12:02:40 PDT"]
[Termination "Vincent_Vega95 won by resignation"]

1. d4 {[%clk 0:03:00.9]} 1... g6 {[%clk 0:02:59.3]} 2. c4 {[%clk 0:03:01.2]}
2... Bg7 {[%clk 0:02:58.5]} 3. e4 {[%clk 0:03:01.7]} 3... Nc6 {[%clk 0:02:57.3]}
4. Ne2 {[%clk 0:02:57.3]} 4... e5 {[%clk 0:02:56.5]} 5. d5 {[%clk 0:02:57.8]}
5... Nd4 {[%clk 0:02:55.9]} 6. Nxd4 {[%clk 0:02:57.7]} 6... exd4 {[%clk
0:02:55.2]} 7. Bd3 {[%clk 0:02:58.2]} 7... d6 {[%clk 0:02:52.2]} 8. h4 {[%clk
0:02:58.6]} 8... h5 {[%clk 0:02:46.7]} 9. Bg5 {[%clk 0:02:58]} 9... Bf6 {[%clk
0:02:38.9]} 10. Qd2 {[%clk 0:02:57.5]} 10... c5 {[%clk 0:02:33.4]} 11. Na3
{[%clk 0:02:53.5]} 11... a6 {[%clk 0:02:27.3]} 12. Rb1 {[%clk 0:02:52.9]} 12...
Bd7 {[%clk 0:02:24.3]} 13. b4 {[%clk 0:02:51.9]} 13... b6 {[%clk 0:02:11.2]} 14.
O-O {[%clk 0:02:50.8]} 14... Bxg5 {[%clk 0:02:07.5]} 15. hxg5 {[%clk 0:02:42.6]}
15... h4 {[%clk 0:02:06.4]} 16. bxc5 {[%clk 0:02:36.5]} 16... bxc5 {[%clk
0:02:04.1]} 17. Qf4 {[%clk 0:02:34.1]} 17... Rh5 {[%clk 0:01:55.1]} 18. Qxd6
{[%clk 0:02:25.9]} 18... Rxg5 {[%clk 0:01:54.4]} 19. Kh1 {[%clk 0:01:58.6]}
19... Qe7 {[%clk 0:01:43.2]} 20. Rb8+ {[%clk 0:01:51.6]} 20... Rxb8 {[%clk
0:01:42.3]} 21. Qxb8+ {[%clk 0:01:52.5]} 21... Qd8 {[%clk 0:01:41.6]} 22. Rb1
{[%clk 0:01:52.7]} 22... Nf6 {[%clk 0:01:23.3]} 23. Qf4 {[%clk 0:01:48.9]} 23...
Rg4 {[%clk 0:01:21.6]} 24. Qe5+ {[%clk 0:01:48.8]} 24... Kf8 {[%clk 0:01:04.3]}
25. Rb8 {[%clk 0:01:49.1]} 25... Qxb8 {[%clk 0:01:03.8]} 26. Qxb8+ {[%clk
0:01:48.5]} 26... Kg7 {[%clk 0:01:04.7]} 27. Qe5 {[%clk 0:01:39]} 27... h3
{[%clk 0:00:53.1]} 28. g3 {[%clk 0:01:38.8]} 28... Ba4 {[%clk 0:00:48.3]} 29. f3
{[%clk 0:01:36.2]} 1-0

[Event "*** Titled Tuesday Blitz"]
[Site "Chess.com"]
[Date "2021.03.16"]
[Round "11"]
[White "Nemsko"]
[Black "muchojogo"]
[Result "0-1"]
[WhiteElo "2302"]
[BlackElo "2410"]
[TimeControl "180+1"]
[EndTime "12:03:00 PDT"]
[Termination "muchojogo won by checkmate"]

1. e4 {[%clk 0:03:00.9]} 1... c5 {[%clk 0:02:58.3]} 2. Nf3 {[%clk 0:03:00.1]}
2... d6 {[%clk 0:02:50.1]} 3. d4 {[%clk 0:02:58]} 3... cxd4 {[%clk 0:02:51]} 4.
Nxd4 {[%clk 0:02:58.6]} 4... Nf6 {[%clk 0:02:50.7]} 5. Nc3 {[%clk 0:02:57.3]}
5... g6 {[%clk 0:02:50.2]} 6. Be3 {[%clk 0:02:55.7]} 6... Bg7 {[%clk 0:02:50.8]}
7. f3 {[%clk 0:02:55.5]} 7... Nc6 {[%clk 0:02:51.4]} 8. Qd2 {[%clk 0:02:55.8]}
8... O-O {[%clk 0:02:52]} 9. O-O-O {[%clk 0:02:53.9]} 9... Nxd4 {[%clk
0:02:52.2]} 10. Bxd4 {[%clk 0:02:52.1]} 10... Be6 {[%clk 0:02:53.1]} 11. h4
{[%clk 0:02:49.8]} 11... Qa5 {[%clk 0:02:53.3]} 12. Kb1 {[%clk 0:02:47.1]} 12...
Rfc8 {[%clk 0:02:53.3]} 13. a3 {[%clk 0:02:24.1]} 13... Rab8 {[%clk 0:02:52.3]}
14. g4 {[%clk 0:02:09.6]} 14... b5 {[%clk 0:02:50.6]} 15. g5 {[%clk 0:01:55.2]}
15... b4 {[%clk 0:02:45.5]} 16. Ne2 {[%clk 0:01:27.2]} 16... Nd7 {[%clk
0:02:24.7]} 17. Bxg7 {[%clk 0:01:24.8]} 17... Kxg7 {[%clk 0:02:25.6]} 18. Nf4
{[%clk 0:01:21.9]} 18... Ne5 {[%clk 0:02:19.3]} 19. Nxe6+ {[%clk 0:01:07.9]}
19... fxe6 {[%clk 0:02:20.2]} 20. f4 {[%clk 0:01:07]} 20... Nc6 {[%clk
0:02:09.9]} 21. a4 {[%clk 0:00:43.1]} 21... Qxa4 {[%clk 0:02:05]} 22. h5 {[%clk
0:00:42.3]} 22... b3 {[%clk 0:02:01.3]} 23. cxb3 {[%clk 0:00:38]} 23... Qxb3
{[%clk 0:01:41.1]} 24. hxg6 {[%clk 0:00:36.5]} 24... Nb4 {[%clk 0:01:30.3]} 25.
Rxh7+ {[%clk 0:00:25.2]} 25... Kxg6 {[%clk 0:01:30.5]} 26. Rh6+ {[%clk
0:00:18.3]} 26... Kg7 {[%clk 0:01:30.7]} 27. Qd4+ {[%clk 0:00:18.1]} 27... e5
{[%clk 0:01:30.9]} 28. fxe5 {[%clk 0:00:17]} 28... Qa2# {[%clk 0:01:30.9]} 0-1

[Event "*** Titled Tuesday Blitz"]
[Site "Chess.com"]
[Date "2021.03.16"]
[Round "11"]
[White "andriipalchuk"]
[Black "mjray79"]
[Result "1-0"]
[WhiteElo "2567"]
[BlackElo "2466"]
[TimeControl "180+1"]
[EndTime "12:03:13 PDT"]
[Termination "andriipalchuk won by resignation"]

1. d4 {[%clk 0:03:00.9]} 1... Nf6 {[%clk 0:02:59.5]} 2. c4 {[%clk 0:03:01.8]}
2... g6 {[%clk 0:03:00.1]} 3. Nf3 {[%clk 0:03:00.5]} 3... Bg7 {[%clk 0:03:00.7]}
4. g3 {[%clk 0:03:00.2]} 4... d6 {[%clk 0:03:01]} 5. Bg2 {[%clk 0:03:00.7]} 5...
O-O {[%clk 0:03:01.4]} 6. O-O {[%clk 0:03:01.3]} 6... Nc6 {[%clk 0:03:01.7]} 7.
Nc3 {[%clk 0:03:01.4]} 7... a6 {[%clk 0:03:02.2]} 8. b3 {[%clk 0:03:00.7]} 8...
e5 {[%clk 0:03:02.2]} 9. dxe5 {[%clk 0:02:51]} 9... dxe5 {[%clk 0:03:03.1]} 10.
Bb2 {[%clk 0:02:51.2]} 10... Be6 {[%clk 0:02:59.8]} 11. Qc1 {[%clk 0:02:43.7]}
11... h6 {[%clk 0:02:56.2]} 12. Rd1 {[%clk 0:02:28.9]} 12... Qc8 {[%clk
0:02:56.3]} 13. Nd5 {[%clk 0:02:29.4]} 13... Nd7 {[%clk 0:02:38.5]} 14. h4
{[%clk 0:01:53.1]} 14... Kh7 {[%clk 0:02:27.8]} 15. Kh2 {[%clk 0:01:38.4]} 15...
Nb6 {[%clk 0:02:06.8]} 16. Qe3 {[%clk 0:01:24.2]} 16... Bxd5 {[%clk 0:02:00.5]}
17. cxd5 {[%clk 0:01:20.2]} 17... Nb4 {[%clk 0:02:01.1]} 18. Qc5 {[%clk
0:01:18.7]} 18... a5 {[%clk 0:01:48.2]} 19. a3 {[%clk 0:01:14.2]} 19... Na6
{[%clk 0:01:37.5]} 20. Qc2 {[%clk 0:01:12.6]} 20... Re8 {[%clk 0:01:32.7]} 21.
Bh3 {[%clk 0:01:09.5]} 21... Qd8 {[%clk 0:01:28.4]} 22. h5 {[%clk 0:01:04.5]}
22... e4 {[%clk 0:01:23.5]} 23. Nh4 {[%clk 0:01:02.7]} 23... Qg5 {[%clk
0:01:16.1]} 24. hxg6+ {[%clk 0:01:00.6]} 24... fxg6 {[%clk 0:01:16.1]} 25. Bxg7
{[%clk 0:01:00.3]} 25... Kxg7 {[%clk 0:01:17]} 26. d6 {[%clk 0:00:57.1]} 26...
Qf6 {[%clk 0:01:08.1]} 27. dxc7 {[%clk 0:00:53.7]} 27... Qxf2+ {[%clk
0:01:07.5]} 28. Bg2 {[%clk 0:00:47.2]} 28... Rac8 {[%clk 0:01:07.2]} 29. Qc3+
{[%clk 0:00:42.8]} 29... Qf6 {[%clk 0:01:06.7]} 30. Qxf6+ {[%clk 0:00:42.5]}
30... Kxf6 {[%clk 0:01:07.6]} 31. Rd6+ {[%clk 0:00:41.9]} 1-0

[Event "*** Titled Tuesday Blitz"]
[Site "Chess.com"]
[Date "2021.03.16"]
[Round "11"]
[White "Piacramling"]
[Black "HanSchut"]
[Result "1-0"]
[WhiteElo "2355"]
[BlackElo "2234"]
[TimeControl "180+1"]
[EndTime "12:03:33 PDT"]
[Termination "Piacramling won on time"]

1. Nf3 {[%clk 0:03:00.9]} 1... Nf6 {[%clk 0:02:59.3]} 2. c4 {[%clk 0:03:00.3]}
2... c5 {[%clk 0:02:58.3]} 3. Nc3 {[%clk 0:02:59.5]} 3... d5 {[%clk 0:02:58.7]}
4. cxd5 {[%clk 0:02:58.5]} 4... Nxd5 {[%clk 0:02:59.6]} 5. e3 {[%clk 0:02:53.5]}
5... Nc7 {[%clk 0:02:54.3]} 6. d4 {[%clk 0:02:46.6]} 6... cxd4 {[%clk
0:02:55.2]} 7. exd4 {[%clk 0:02:46.1]} 7... g6 {[%clk 0:02:54.9]} 8. Bc4 {[%clk
0:02:37.2]} 8... Bg7 {[%clk 0:02:53.5]} 9. O-O {[%clk 0:02:36.8]} 9... O-O
{[%clk 0:02:53.3]} 10. Ne5 {[%clk 0:02:36.4]} 10... e6 {[%clk 0:02:45.8]} 11.
Bf4 {[%clk 0:02:27]} 11... Nc6 {[%clk 0:02:38]} 12. Nxc6 {[%clk 0:02:17.5]}
12... bxc6 {[%clk 0:02:38.9]} 13. Qd2 {[%clk 0:02:12.8]} 13... Nd5 {[%clk
0:02:31.5]} 14. Bg5 {[%clk 0:02:10.3]} 14... Qb6 {[%clk 0:02:02.9]} 15. Rfd1
{[%clk 0:02:09.8]} 15... Nxc3 {[%clk 0:01:43.6]} 16. bxc3 {[%clk 0:02:08.9]}
16... c5 {[%clk 0:01:22.9]} 17. d5 {[%clk 0:02:05.9]} 17... Rb8 {[%clk
0:00:46.6]} 18. d6 {[%clk 0:01:39.6]} 18... Bd7 {[%clk 0:00:41.4]} 19. Rac1
{[%clk 0:01:21.1]} 19... Rfc8 {[%clk 0:00:26.1]} 20. h4 {[%clk 0:01:19.3]} 20...
Qc6 {[%clk 0:00:23.3]} 21. Qf4 {[%clk 0:01:10.5]} 21... Qa4 {[%clk 0:00:15.5]}
22. h5 {[%clk 0:01:08]} 22... Qc6 {[%clk 0:00:07.5]} 23. h6 {[%clk 0:01:04.3]}
23... Bh8 {[%clk 0:00:05.7]} 24. Bf6 {[%clk 0:01:04.1]} 1-0

[Event "*** Titled Tuesday Blitz"]
[Site "Chess.com"]
[Date "2021.03.16"]
[Round "11"]
[White "kunaevchess"]
[Black "IngOscarArdila"]
[Result "1-0"]
[WhiteElo "2381"]
[BlackElo "2278"]
[TimeControl "180+1"]
[EndTime "12:03:40 PDT"]
[Termination "kunaevchess won by checkmate"]

1. e4 {[%clk 0:03:00.9]} 1... e5 {[%clk 0:02:55.9]} 2. Nf3 {[%clk 0:03:01.1]}
2... Nc6 {[%clk 0:02:47]} 3. Bb5 {[%clk 0:03:00.6]} 3... Nf6 {[%clk 0:02:46]} 4.
O-O {[%clk 0:03:00.3]} 4... Nxe4 {[%clk 0:02:44]} 5. Re1 {[%clk 0:02:58.7]} 5...
d5 {[%clk 0:02:41]} 6. Nxe5 {[%clk 0:02:50.2]} 6... Bd7 {[%clk 0:01:35.8]} 7.
Nxd7 {[%clk 0:02:45.4]} 7... Kxd7 {[%clk 0:01:30.8]} 8. Qg4+ {[%clk 0:02:26.2]}
8... Kd6 {[%clk 0:01:30.4]} 9. d3 {[%clk 0:02:20]} 9... Nf6 {[%clk 0:01:23.7]}
10. Qg3+ {[%clk 0:02:11.7]} 10... Kc5 {[%clk 0:01:22.5]} 11. Na3 {[%clk
0:01:59.1]} 11... a6 {[%clk 0:01:20.6]} 12. Bxc6 {[%clk 0:01:45.9]} 12... Kxc6
{[%clk 0:01:20.8]} 13. Bg5 {[%clk 0:01:42.6]} 13... Bd6 {[%clk 0:01:17.1]} 14.
Qh4 {[%clk 0:01:42.3]} 14... h6 {[%clk 0:01:16.2]} 15. Bd2 {[%clk 0:01:29.5]}
15... g5 {[%clk 0:01:08.6]} 16. Qa4+ {[%clk 0:01:29]} 16... b5 {[%clk
0:01:08.2]} 17. Qb3 {[%clk 0:01:29.6]} 17... Qd7 {[%clk 0:01:00.6]} 18. c4
{[%clk 0:01:29.3]} 18... dxc4 {[%clk 0:00:57.8]} 19. dxc4 {[%clk 0:01:29.4]}
19... b4 {[%clk 0:00:55.2]} 20. Qa4+ {[%clk 0:01:27]} 20... Kb7 {[%clk
0:00:54.7]} 21. Qb3 {[%clk 0:01:18.3]} 21... a5 {[%clk 0:00:42.8]} 22. Be3
{[%clk 0:01:14.1]} 22... a4 {[%clk 0:00:36.3]} 23. Qc2 {[%clk 0:01:06.3]} 23...
bxa3 {[%clk 0:00:29.2]} 24. bxa3 {[%clk 0:01:06.3]} 24... Kc8 {[%clk 0:00:21.7]}
25. c5 {[%clk 0:01:04.1]} 25... Be5 {[%clk 0:00:20.9]} 26. Rad1 {[%clk
0:01:04.2]} 26... Qc6 {[%clk 0:00:20.4]} 27. Qf5+ {[%clk 0:01:02.9]} 27... Qe6
{[%clk 0:00:20.3]} 28. Qf3 {[%clk 0:01:01]} 28... Re8 {[%clk 0:00:19.4]} 29.
Qxa8# {[%clk 0:01:00]} 1-0

[Event "*** Titled Tuesday Blitz"]
[Site "Chess.com"]
[Date "2021.03.16"]
[Round "11"]
[White "GoltsevDmitry2000"]
[Black "Frolyanov_D"]
[Result "0-1"]
[WhiteElo "2791"]
[BlackElo "2693"]
[TimeControl "180+1"]
[EndTime "12:03:41 PDT"]
[Termination "Frolyanov_D won by checkmate"]

1. e4 {[%clk 0:02:57.3]} 1... c5 {[%clk 0:02:59.8]} 2. Nf3 {[%clk 0:02:57.1]}
2... e6 {[%clk 0:03:00.2]} 3. d4 {[%clk 0:02:54.1]} 3... cxd4 {[%clk 0:03:01.1]}
4. Nxd4 {[%clk 0:02:55]} 4... a6 {[%clk 0:03:01.6]} 5. Nc3 {[%clk 0:02:54.1]}
5... Qc7 {[%clk 0:02:56.4]} 6. Be3 {[%clk 0:02:53]} 6... Nf6 {[%clk 0:02:55.2]}
7. Be2 {[%clk 0:02:53]} 7... d6 {[%clk 0:02:52.1]} 8. O-O {[%clk 0:02:52.8]}
8... Be7 {[%clk 0:02:51.7]} 9. a4 {[%clk 0:02:52.9]} 9... b6 {[%clk 0:02:50.5]}
10. f4 {[%clk 0:02:53.4]} 10... Bb7 {[%clk 0:02:50.1]} 11. Bf3 {[%clk
0:02:54.1]} 11... Nbd7 {[%clk 0:02:49.7]} 12. Qe2 {[%clk 0:02:53.4]} 12... Nc5
{[%clk 0:02:46.3]} 13. Bf2 {[%clk 0:02:51.2]} 13... O-O {[%clk 0:02:37.5]} 14.
g4 {[%clk 0:02:50.5]} 14... Rfe8 {[%clk 0:02:34.5]} 15. g5 {[%clk 0:02:46]}
15... Nfd7 {[%clk 0:02:31.8]} 16. h4 {[%clk 0:02:46.4]} 16... Bf8 {[%clk
0:02:24.1]} 17. Rad1 {[%clk 0:02:45.3]} 17... e5 {[%clk 0:02:23.7]} 18. Nf5
{[%clk 0:02:44.4]} 18... exf4 {[%clk 0:02:22.4]} 19. Qd2 {[%clk 0:02:35.4]}
19... Ne5 {[%clk 0:02:21.3]} 20. Qxf4 {[%clk 0:02:34.5]} 20... Nxf3+ {[%clk
0:02:21]} 21. Qxf3 {[%clk 0:02:35.4]} 21... Nxe4 {[%clk 0:02:15.2]} 22. Qg4
{[%clk 0:02:26.9]} 22... Nxc3 {[%clk 0:02:03.9]} 23. bxc3 {[%clk 0:02:27.7]}
23... g6 {[%clk 0:01:44.5]} 24. Ng3 {[%clk 0:02:26.4]} 24... Qc6 {[%clk
0:01:37.1]} 25. Qh3 {[%clk 0:02:25.1]} 25... Qxc3 {[%clk 0:01:11.4]} 26. Bd4
{[%clk 0:02:21.3]} 26... Qxc2 {[%clk 0:01:07.6]} 27. h5 {[%clk 0:02:20.4]} 27...
Rac8 {[%clk 0:00:38.3]} 28. hxg6 {[%clk 0:02:19.9]} 28... Qxg6 {[%clk
0:00:38.5]} 29. Nh5 {[%clk 0:01:45.3]} 29... Qxg5+ {[%clk 0:00:36.8]} 30. Kh2
{[%clk 0:01:45.8]} 30... Rc2+ {[%clk 0:00:35.4]} 31. Rf2 {[%clk 0:01:44.8]}
31... Rxf2+ {[%clk 0:00:33]} 32. Bxf2 {[%clk 0:01:45.7]} 32... Re2 {[%clk
0:00:31.9]} 33. Rf1 {[%clk 0:01:36.8]} 33... d5 {[%clk 0:00:28.9]} 34. Qf3
{[%clk 0:01:36.8]} 34... Bd6+ {[%clk 0:00:26.4]} 35. Kh1 {[%clk 0:01:35.9]}
35... d4 {[%clk 0:00:25.5]} 36. Qxb7 {[%clk 0:01:28.1]} 36... Qxh5+ {[%clk
0:00:25.1]} 37. Kg2 {[%clk 0:01:28.7]} 37... Qg4+ {[%clk 0:00:23.6]} 38. Kh1
{[%clk 0:01:25]} 38... Qh3+ {[%clk 0:00:22.9]} 39. Kg1 {[%clk 0:01:25.6]} 39...
Qh2# {[%clk 0:00:22.2]} 0-1

[Event "*** Titled Tuesday Blitz"]
[Site "Chess.com"]
[Date "2021.03.16"]
[Round "11"]
[White "NiranjanNavalgund"]
[Black "jacky72"]
[Result "0-1"]
[WhiteElo "2523"]
[BlackElo "2689"]
[TimeControl "180+1"]
[EndTime "12:03:56 PDT"]
[Termination "jacky72 won by checkmate"]

1. e4 {[%clk 0:03:00.9]} 1... a6 {[%clk 0:03:00.9]} 2. d4 {[%clk 0:02:59.8]}
2... g6 {[%clk 0:03:00.9]} 3. h4 {[%clk 0:02:59.5]} 3... h6 {[%clk 0:03:00.2]}
4. h5 {[%clk 0:02:58.7]} 4... g5 {[%clk 0:03:00.4]} 5. c4 {[%clk 0:02:59.2]}
5... Bg7 {[%clk 0:03:00.4]} 6. Nc3 {[%clk 0:02:59.6]} 6... c5 {[%clk 0:03:00]}
7. d5 {[%clk 0:02:58.6]} 7... b5 {[%clk 0:03:00.2]} 8. cxb5 {[%clk 0:02:58.1]}
8... axb5 {[%clk 0:03:01.1]} 9. Nxb5 {[%clk 0:02:57]} 9... Ba6 {[%clk
0:02:57.9]} 10. Nc3 {[%clk 0:02:57]} 10... Bxf1 {[%clk 0:02:56.6]} 11. Kxf1
{[%clk 0:02:57.9]} 11... d6 {[%clk 0:02:56]} 12. Nge2 {[%clk 0:02:58.1]} 12...
Nf6 {[%clk 0:02:55.5]} 13. Ng3 {[%clk 0:02:57.5]} 13... O-O {[%clk 0:02:47.7]}
14. Nf5 {[%clk 0:02:57]} 14... Na6 {[%clk 0:02:48.3]} 15. f4 {[%clk 0:02:53.5]}
15... gxf4 {[%clk 0:02:39.8]} 16. Bxf4 {[%clk 0:02:52.5]} 16... e6 {[%clk
0:02:37.2]} 17. Nxg7 {[%clk 0:02:45.9]} 17... Kxg7 {[%clk 0:02:36.4]} 18. Qd2
{[%clk 0:02:46.8]} 18... Rh8 {[%clk 0:02:30.8]} 19. Rh3 {[%clk 0:02:46.9]} 19...
e5 {[%clk 0:02:24.7]} 20. Rg3+ {[%clk 0:02:46]} 20... Kh7 {[%clk 0:02:25.1]} 21.
Bxh6 {[%clk 0:02:44.8]} 21... Nxh5 {[%clk 0:02:25.7]} 22. Rh3 {[%clk 0:02:42.2]}
22... Qf6+ {[%clk 0:02:25.4]} 23. Kg1 {[%clk 0:02:36]} 23... Qxh6 {[%clk
0:02:25.1]} 24. Qe2 {[%clk 0:02:34.2]} 24... Kg7 {[%clk 0:02:19.8]} 25. Rf1
{[%clk 0:02:22.1]} 25... Nf4 {[%clk 0:02:17.3]} 26. Qg4+ {[%clk 0:02:20.5]}
26... Qg6 {[%clk 0:02:17.3]} 27. Qxg6+ {[%clk 0:02:18.9]} 27... fxg6 {[%clk
0:02:14.3]} 28. Rxh8 {[%clk 0:02:18.2]} 28... Rxh8 {[%clk 0:02:14.8]} 29. Nb5
{[%clk 0:02:18.4]} 29... Rb8 {[%clk 0:02:02.7]} 30. Nxd6 {[%clk 0:02:17.2]}
30... Rxb2 {[%clk 0:02:03.6]} 31. Nc4 {[%clk 0:02:14.1]} 31... Rxg2+ {[%clk
0:02:02.9]} 32. Kh1 {[%clk 0:02:14.5]} 32... Re2 {[%clk 0:01:46.3]} 33. Nxe5
{[%clk 0:02:10]} 33... Rxe4 {[%clk 0:01:46.1]} 34. Nc6 {[%clk 0:02:00]} 34...
Nxd5 {[%clk 0:01:40.1]} 35. Rd1 {[%clk 0:01:54.4]} 35... Nab4 {[%clk 0:01:39]}
36. Nd8 {[%clk 0:01:45.8]} 36... Rh4+ {[%clk 0:01:29.2]} 37. Kg1 {[%clk
0:01:45.4]} 37... Rg4+ {[%clk 0:01:24.9]} 38. Kh1 {[%clk 0:01:44.2]} 38... Ne3
{[%clk 0:01:21.2]} 39. Rd7+ {[%clk 0:01:39.6]} 39... Kf6 {[%clk 0:01:19.3]} 40.
a3 {[%clk 0:01:39.1]} 40... Nbd5 {[%clk 0:01:15.4]} 41. Nc6 {[%clk 0:01:24.7]}
41... Nf4 {[%clk 0:01:12.1]} 42. Rd6+ {[%clk 0:01:15.9]} 42... Kg7 {[%clk
0:01:12.2]} 43. Ne5 {[%clk 0:01:13.2]} 43... Rg3 {[%clk 0:01:01.8]} 44. Rc6
{[%clk 0:01:08.5]} 44... Ne2 {[%clk 0:00:58.8]} 45. Kh2 {[%clk 0:00:55.4]} 45...
Rg2+ {[%clk 0:00:58.4]} 46. Kh3 {[%clk 0:00:49]} 46... Nf4+ {[%clk 0:00:58.8]}
47. Kh4 {[%clk 0:00:48.8]} 47... Nf5# {[%clk 0:00:58.2]} 0-1